Workbook

Sheet Help
B2: CCS economic benchmarking
B4: Expected inputs
B6: The expected inputs from the user are in red. The related cells can be modified by the user, while all other cells are protected.
C7: * The type of carbon capture approach: post-combustion, oxy-combustion, or Ca-looping (which shares elements of post-combustion and oxy-combustion capture techniques). * The heat duty per unit mass of CO2 captured provided by steam bled from the turbine qCO2,capt (in MJth/kgCO2,capt) and the steam extraction pressure pbl. * The electric energy consumption of the CO2 separation technology per unit mass of CO2 wCO2,capt (in MJe/kgCO2,capt) excluding CO2 compression (e.g., solvent pumps, vacuum compressors, air separation unit, chillers). * The fraction ξ of the electric power consumed for CO2 capture that is released to the ambient environment through the plant cooling system. Values can range from 0% (for example for ID fans working on exhaust gases, where electric power is transferred to the flue gas emitted at the stack) to close to 100% (for example for intercooled compressors and solvent pumps, where electric power is almost totally transferred to the fluid and then released to the environment through the cooling water circuit). * The fraction of the total (thermal and electrical) energy input to the capture system that can be recovered by the steam cycle as low temperature heat and the expected heat recovery efficiency * The expected reduction in net electric efficiency of the plant compared to the efficiency of the benchmark plant without CO2 capture. If this value is not known, it can be estimated by the simplified mass and energy balance calculation by pressing the button "Δη ESTIMATE". * The carbon capture ratio (CCR). * The pressure at which the CO2 is delivered from the capture unit prior to final compression (pCO2) and its purity (xCO2). * The Capacity Factor, i.e. the ratio between the actual yearly electric energy production and the maximum theoretical energy produced with the nominal power output for 8760 hours per year.
C8: An estimate of the CAPEX and OPEX costs of the novel capture system may be provided in input to graphically show the position of the technology on the Capex-Opex chart with respect to the breakeven line. However, these data are not needed for the cost estimate.
C9: A components mapping section allows to exclude some components from the cost estimate of the well-established technologies section. If YES is selected, the component cost is scaled according to the estimated mass and energy balance and included into the plant cost analysis. If NO is selected (for instance, if the main boiler is totally substituted by the capture system), the component is not included in the cost estimation of the conventional components, but it has to be charged on the CAPEX/OPEX of the novel system.
B10: In the "Calc" sheet, the reference costs of the benchamark plants (with and without carbon capture) are listed and can be changed if a different economic framework has to be assumed as reference. In order to obtain a reliable estimate, please modify the energy and cost reference using consistent datasets.
B11: In the "Maps" sheet, the CO2 compressor consumption and the turbine gross power loss curves can be modified. The first gives the electric consumption of the CO2 compressor as a function of inlet pressure and purity, assuming that no further purification of the CO2 from incondensable gases is needed. The latter provides the electric energy loss as function of tne steam bleeding pressure.
B13: Run the simulation
B15: If the efficiency penalty value is not available from process simulations, it can be estimated by the simplified mass and energy balance calculation by pressing the button "Δη ESTIMATE". The estimated mass and energy balances are graphically shown in the "Sankey" worksheet. A message in the "Status" section recalls wether the efficiency is estimated with the simplified H&M balance or if it is provided in input by the user.
B16: Once the inputs have been provided, the simulation can be run using the button "Evaluate cost".
B17: The "Evaluate costs" button runs the model and prints the results for the specified input. The STATUS section provides an indication of the status of the results. The first line indicates if the problem has been run after any change of the input values. The second line provides information on the energy balance calculation: * "Efficiency set by user": the efficiency is provided by the user in the input section and gives a reasonable energy balance * "Efficiency estimated by simplified H&M balance": the estimated efficiency value is used and the energy balance is reasonable * "WARNING": an inconsistency in the energy balance is calculated, based on the estimation of the simplified model. Additional heat provided from an external source or additional losses must be assumed to close the balance. The user should increase (if "heat recovery higher than consumption" message) or reduce (if "negative heat recovery" message) the input efficiency penalty.
B19: Results
C21: The first section of results provides the details of the additional consumptions due to the presence of the carbon capture section: * Expected CO2 compressor consumption (according to the curve in the "Maps" sheet) * The total electric consumption of the capture system (i.e. CO2 separation + CO2 compression) * The equivalent electricity loss per unit of thermal energy provided to the capture system by the steam bled from the turbine * The total equivalent electric consumption, which is the sum of the total electric consumption and the electric power output lost due to steam bleeding from the turbine * The ratio between the actual electricity consumption and the equivalent electric consumption of the CO2 capture technology * The actual net efficiency loss used in calculations
C22: Cost estimates are reported in terms of breakeven CAPEX and OPEX, specific to the flow rate CO2 captured and to the nominal plant power output. CAPEX at null OPEX and OPEX at null CAPEX are also provided, which represent the intercepts of the breakeven line with the axes.
B23: In the graphs, the foreseen cost of the capture plant provided as input by the user are shown as red dots (with and without compressor cost included). The yellow line shows the breakeven line, considering the actual input data. Below this line, the technology is competitive with the benchmark (same cost of CO2 avoided). The black lines show how the breakeven line would change if the same equivalent energy consumption of the CCS technology (i.e. the same efficiency penalty) were due to electric consumptions only or heat consumptions only (apart from CO2 compression consumption). The last graphs show the impact of equivalent electric consumption (and how it is shared between electricity and heat) on the efficiency loss, as well as the actual evaluated parameters for the CO2 compression and the steam turbine loss due to bleeding on the respective curves.
B24: Additional graphs in the "Maps" sheet show a sensitivity analysis on the breakeven costs obtained by varying the efficiency loss and the equivalent electric consumption. The button "Rebuild CAPEX/OPEX maps" can be used to update the sensitivity analysis.
B26: This work is licensed under the Creative Commons Attribution 4.0 International License. To view a copy of this license, visit http://creativecommons.org/licenses/by/4.0/ or send a letter to Creative Commons, PO Box 1866, Mountain View, CA 94042, USA.

Sheet CCSbench
B2: CCS economic benchmarking | F2: Version: 1.0 | H2: This model is described and has been used in: G. Guandalini, M.C. Romano, M. Ho, D. Wiley, E.S. Rubin, J.C. Abanades, "A sequential approach for the economic evaluation of new CO2 capture technologies for power plants". International Journal of Greenhouse Gas Control, 2019. DOI: https://doi.org/10.​1016/​j.​ijggc.​2019.​03.​006 Red values represent the model inputs to be changed by the user
B4: Authors: Giulio Guandalini, Matteo C. Romano Politecnico di Milano, Department of Energy, Group of Energy Conversion Systems
B6: DATA | H6: Components mapping (cost)
B8: Capture system consumptions | C8: Type | D8: POST | F8: Oxycombustion/Pre/Post-combustion | H8: Component | I8: Included?
C9: q CO2,capt | D9: 2000 | E9: MJ/tonCO2 | F9: Heat consumed by the capture process | H9: Main Boiler | I9: YES
C10: @ pbl | D10: 5.1 | E10: bar | F10: Steam pressure required by the capture process | H10: Equivalent oxy boiler for CaL | I10: YES
C11: w CO2,capt | D11: 120 | E11: MJ/tonCO2 | F11: Electricity consumed by the capture process (without final CO2 compression) | H11: FGD | I11: YES
C12: @ cooling (ξ) | D12: 0.95 | F12: Fraction of electricity dissipated by cooling system | H12: Other flue gas cleaning equipm. | I12: YES | J12: (e.g. SCR, filters)
C13: q CO2,rec | D13: 0 | F13: Fraction of low termperature heat recovered from capture system
C14: ηC,LT | D14: 0.13 | F14: Low temperature heat recovery efficiency
C15: pCO2 | D15: 2 | E15: bar | F15: Outlet pressure of pure CO2 at final intercooled compression inlet
C16: Purity (xCO2) | D16: 1 | F16: CO2 purity before compression | H16: Other specific parameters
C17: Δη exp | D17: 0.07176802064 | F17: Expected LHV efficiency reduction | H17: Coal to main boiler (CaL only) | I17: 1 | K17: % of coal to the air combustion boiler
C18: CCR | D18: 0.9 | F18: Carbon capture ratio
C19: CF | D19: 0.85 | F19: Plant capacity factor
B21: Capture system: known costs | C21: CAPEX | D21: 1500 | E21: k$/kgCO2/s | F21: Capital cost of CCS technology (without final CO2 compression)
C22: OPEX | D22: 15 | E22: $/tonCO2 | F22: Operation cost of CCS technology (without final CO2 compression)
B24: Economics | C24: CCF | D24: 0.1088 | E24: %/y | F24: Currency USD 2011 | H24: Reference net plant output | I24: 550 | J24: MWel
E26: STATUS | F26: Run completed correctly | H26: ASU consumption per unit O2 produced | J26: 200 | K26: kWhel/tonO2
F27: =Calc!K16 -> Efficiency estimated by simplified H&M balance | H27: ASU consumption per unit CO2 captured | J27: =J26*3.6*2.41956/(Calc!C12*Calc!C9/1000)/CCRinp*IF(D8="Ca-L",(1-I17),1) -> 828.5864614 | K27: MJel/tonCO2
B30: RESULTS
B32: Expected compressor power | C32: WCO2,compr | D32: =Maps!H10 -> 267.858333 | E32: MJ/tonCO2 | F32: Compression from pCO2 to 150 bar
B33: Total electric consumption | C33: Wel tot | D33: =D32+D11 -> 387.858333 | E33: MJ/tonCO2 | F33: Includes compression from pCO2 to 150 bar
B34: Equivalent electricity loss | C34: Wel,eq/Q | D34: =Calc!F15 -> 0.2427637167 | E34: MJel/MJth | F34: Equivalent electric energy loss due to steam bleeding
B35: Total equivalent electric cons. | C35: Weq tot | D35: =D33+D34*D9 -> 873.3857664 | E35: MJ/tonCO2 | F35: Total equivalent electric consumption of the capture plant
B36: Electrical over total consumption | C36: Wel,tot/Wel,eq,tot | D36: =D33/D35 -> 0.4440859331 | F36: Fraction of actual electric consumption over total equivalent consumption
B37: Efficiency loss (LHV) | C37: Δηel | D37: =Calc!F16 -> 0.07176802064 | E37: %pt | F37: Plant efficiency loss with respect to the reference plant w/o CCS
B39: CAPEX break-even point | C39: CAPEXBE | D39: =Calc!F20 -> 5980.05201 | E39: k$/(kgCO2/s) | F39: Break-even capital cost at null OPEX (ref. CCS)
B40: OPEX break-even point | C40: OPEXBE | D40: =Calc!F23 -> 42.93388897 | E40: $/tonCO2 | F40: Break-even operation cost at null CAPEX (ref. CCS)
B41: CAPEX break-even point | C41: CAPEXBE | D41: =Calc!G20 -> 1372.861055 | E41: $/kWel | F41: Break-even capital cost at null OPEX (ref. plant)
B42: OPEX break-even point | C42: OPEXBE | D42: =Calc!G23 -> 35.48332865 | E42: $/MWhel | F42: Break-even operation cost at null CAPEX (ref. plant)
B44: Compressor CAPEX estimate | C44: CAPEXCO | D44: =Calc!F25 -> 754.0134707 | E44: k$/(kgCO2/s) | F44: Additional capital cost for CO2 compressor
B46: Expected CCA | C46: CCA | D46: =Calc!F27 -> 72.17059846 | E46: $/tonCO2 | F46: Expected cost of avoided CO2
N47: GRAPHS DATA
B48: Breakeven lines
O49: CO2 reference
O50: OPEX | P50: CAPEX
N51: ="Wel,tot/Wel,eq,tot = "&TEXT(D33/D35,"0.0%") -> Wel,tot/Wel,eq,tot = 44.4% | O51: 0 | P51: =D39 -> 5980.05201
O52: =D40 -> 42.93388897 | P52: 0
N53: EL only | O53: 0 | P53: =Calc!L20 -> 5656.395635
O54: =Calc!L23 -> 40.59806244 | P54: 0
N55: TH + compressor | O55: 0 | P55: =Calc!O20 -> 6074.278502
O56: =Calc!O23 -> 43.61426258 | P56: 0
N57: Benchmark | O57: =Calc!C25 -> 2.370309997 | P57: =Calc!C24 -> 4817.027037
N58: Technology | O58: =D22 -> 15 | P58: =D21 -> 1500
N59: Technology + compr | O59: =O58 -> 15 | P59: =P58+D44 -> 2254.013471
O61: Energy reference
O62: OPEX | P62: CAPEX
N63: ="Wel,tot/Wel,eq,tot = "&TEXT(D33/D35,"0.0%") -> Wel,tot/Wel,eq,tot = 44.4% | O63: 0 | P63: =D41 -> 1372.861055
O64: =D42 -> 35.48332865 | P64: 0
B65: Relation between equivalent electric consumption and efficiency loss | G65: Heat-to-power conversion factor | N65: EL only | O65: 0 | P65: =Calc!M20 -> 1298.558151
O66: =Calc!M23 -> 33.5528513 | P66: 0
N67: TH + compressor | O67: 0 | P67: =Calc!P20 -> 1394.492954
O68: =Calc!P23 -> 36.04563318 | P68: 0
N69: Benchmark | O69: =Calc!C25*Calc!L26/1000 -> 1.958976712 | P69: =Calc!C24*Calc!L26/1000/3.6 -> 1105.861422
N70: Technology | O70: =$D$22*Calc!L26/1000 -> 12.39696525 | P70: =$D$21*Calc!L26/1000/3.6 -> 344.3601459
N71: Technology + compr | O71: =$O$58*Calc!L26/1000 -> 12.39696525 | P71: =($P$58+$D$44)*Calc!L26/1000/3.6 -> 517.4616051
G78: Estimated CO2 compressor consumption

Sheet Calc
A1: CCS economic benchmarking
A2: Reference capture plant implemented: | B2: USC+MEA
A4: References | B4: [1] NETL/DOE, 2012. Updated Costs (June 2011 Basis) for Selected Bituminous Baseline Cases. DOE/NETL-341/082312
B5: [2] NETL/DOE, 2015. Cost and Performance Baseline for Fossil Energy Plants Volume 1a: Bituminous Coal and Natural Gas to Electricity. Revision 3. DOE/NETL-2015/1723
A7: General data | G7: Conversion
A8: Heating value LHV | B8: MJ/kg - Btu/lb | C8: 26.151 | D8: 11252 | E8: [2] pg. 27 | G8: 1 ton | H8: =42.09/38.18 -> 1.102409639 | I8: tonne | L8: reference case input
A9: Heating value HHV | B9: MJ/kg - Btu/lb | C9: 27.113 | D9: 11666 | E9: [2] pg. 28 | G9: 1 kg | H9: =1/453.59237*1000 -> 2.204622622 | I9: lb | L9: case input (from CCSbench sheet)
A10: Fuel cost (HHV) | B10: $/GJ - $/MMBtu | C10: =D10*H10*1000 -> 1.554413967 | D10: 1.64 | E10: [2] pg. 26 | G10: 1 J | H10: =1/1055.06 -> 0.0009478133945 | I10: Btu
B11: $/t - $/lb | C11: =C10*C9 -> 42.14482589 | D11: =D10*D9/1000000 -> 0.01913224
A12: Emission factor (ECO2,fuel) | B12: kg/GJ HHV | C12: =0.6375/12.01*44.01/C9*1000 -> 86.16104868 | E12: [2] pg. 32 - complete combustion
A14: Capture system data | E14: Results
A15: CCS type | C15: =CCSbench!D8 -> POST | E15: Weq/Q | F15: =C84 -> 0.2427637167 | G15: MJel/MJth
A16: CO2 capture efficiency (ηcapt) | B16: % | C16: =CCSbench!D18 -> 0.9 | E16: Δηel | F16: =CCSbench!D17 -> 0.07176802064 | G16: %pt | J16: STATUS | K16: =IF(ABS(C69-QrecFrac*(QCCS+WCCS))<5,"Efficiency estimated by simplified H&M balance",IF(AND(C69>0,C69<QCCS+WCCS),"Efficiency set by user",IF(C69>0,"WARNING: Heat recovery higher than consumption","WARNING: Negative heat recovery"))) -> Efficiency estimated by simplified H&M balance
A17: Compressor consumption (wCO2,comp) | B17: MJ/tonCO2 | C17: =CCSbench!D32 -> 267.858333
A18: Total electric consumption | B18: MJ/tonCO2 | C18: =CCSbench!D33 -> 387.858333 | E18: Actual | F18: k$/(kgCO2/s) | G18: $/kWe | I18: Breakeven results | K18: Only EL | L18: k$/(kgCO2/s) | M18: $/kWe | N18: TH+compr | O18: k$/(kgCO2/s) | P18: $/kWe
A19: Thermal consumption (qCO2,comp) | B19: MJ/tonCO2 | C19: =CCSbench!D9 -> 2000 | E19: CAPEX break | F19: 5226.051202 | G19: 1199.762503 | I19: without compression | K19: CAPEX break | L19: 4902.388763 | M19: 1125.458206 | N19: CAPEX break | O19: 5320.274712 | P19: 1221.393717
A20: Bleeding pressure | B20: bar | C20: =CCSbench!D10 -> 5.1 | F20: 5980.05201 | G20: 1372.861055 | I20: with compression | L20: 5656.395635 | M20: 1298.558151 | O20: 6074.278502 | P20: 1394.492954
A21: CCS EE consumption to cooling system | B21: % | C21: =CCSbench!D12 -> 0.95 | F21: $/tonCO2 | G21: $/MWhe | L21: $/tonCO2 | M21: $/MWhe | O21: $/tonCO2 | P21: $/MWhe
A22: CCF | B22: %/y | C22: =CCSbench!D24 -> 0.1088 | E22: OPEX break | F22: 37.4949327 | G22: 30.98822519 | I22: without compression | K22: OPEX break | L22: 35.16302837 | M22: 29.06098939 | N22: OPEX break | O22: 38.17412736 | P22: 31.54955536
F23: 42.93388897 | G23: 35.48332865 | I23: with compression | L23: 40.59806244 | M23: 33.5528513 | O23: 43.61426258 | P23: 36.04563318
A24: Benchmark CAPEX | B24: k$/(kgCO2/s) | C24: =(E97+E98)/E39 -> 4817.027037
A25: Benchmark OPEX | B25: $/tonCO2 | C25: =E124/E40*1000 -> 2.370309997 | E25: Compressor | F25: =C98/C39 -> 754.0134707 | G25: k$/(kgCO2/s) | K25: Weqtot | L25: =C18+C19*F15 -> 873.3857664 | M25: MJ/tonCO2
A26: Expected CAPEX | B26: k$/(kgCO2/s) | C26: =CCSbench!D21 -> 1500 | K26: CO2 spec | L26: =C40 -> 826.4643502 | M26: kg/MWh
A27: Expected OPEX | B27: $/tonCO2 | C27: =CCSbench!D22 -> 15 | E27: CCA | F27: =C143 -> 72.17059846 | G27: $/tonCO2
I28: Low T heat recovery efficency | K28: =CCSbench!D14 -> 0.13 | M28: Recovered low T heat fraction | O28: =QrecCCS/(C68+C60) -> -5.091945857e-07
D29: DOE Cases B12A / B12B
A30: Plant energy balance | C30: Actual | D30: USC | E30: USC+MEA | G30: Reference | I30: Proportional to
A31: Net power output (Pel) | B31: MWe | C31: =CCSbench!I24 -> 550 | D31: 550 | E31: 550 | G31: [2] p. 15 | N31: =C31/E31-1 -> 0
A32: Electric efficiency (ηel) | B32: %HHV | C32: =C33*C8/C9 -> 0.3377783902 | D32: 0.407 | E32: 0.325 | G32: [2] p. 15 | N32: =C32/E32-1 -> 0.03931812355
B33: %LHV | C33: =D33-F16 -> 0.3502040263 | D33: =D32*$C$9/$C$8 -> 0.421972047 | E33: =E32*$C$9/$C$8 -> 0.3369555658 | N33: 0.03931812355
A34: Carbon capture efficiency (ηcapt) | B34: % | C34: =C16 -> 0.9 | D34: 0 | E34: 0.9 | G34: [2] p. 15 | N34: 0
A35: Fuel input (HHV) (Qfuel) | B35: MWHHV | C35: =C31/C32 -> 1628.286522 | D35: =D31/D32 -> 1351.351351 | E35: =E31/E32 -> 1692.307692 | N35: -0.03783069174
A36: Fuel to main boiler | B36: MWHHV | C36: =IF($C$15="CA-L",CCSbench!$I$17,1)*C35 -> 1628.286522 | D36: =D35 -> 1351.351351 | E36: =E35 -> 1692.307692 | N36: -0.03783069174
A38: CO2 total flow | B38: kg/s | C38: =C35*$C$12/1000 -> 140.2948743 | D38: =D35*$C$12/1000 -> 116.4338496 | E38: =E35*$C$12/1000 -> 145.8110055 | N38: -0.03783069174
A39: CO2 to storage (GCO2,capt) | B39: kg/s | C39: =C38*C34 -> 126.2653868 | D39: =D38*D34 -> 0 | E39: =E38*E34 -> 131.2299049 | N39: -0.03783069174
B40: kg/MWhe | C40: =C39*3600/C31 -> 826.4643502 | D40: =D39*3600/D31 -> 0 | E40: =E39*3600/E31 -> 858.9593776 | N40: -0.03783069174
A41: CO2 emitted (GCO2,emit) | B41: kg/s | C41: =C38*(1-C34) -> 14.02948743 | D41: =D38*(1-D34) -> 116.4338496 | E41: =E38*(1-E34) -> 14.58110055 | N41: -0.03783069174
B42: kg/MWhe | C42: =C41*3600/C31 -> 91.82937224 | D42: =D41*3600/D31 -> 762.1124699 | E42: =E41*3600/E31 -> 95.43993085 | N42: -0.03783069174
A44: Combustion flue gases | B44: kg/s | C44: =IF($C$15="OXY",C38/0.825*3.19,E44/E35*C35)*IF($C$15="CA-L",CCSbench!$I$17,1) -> 682.1402059 | D44: =D45 -> 601.4675146 | E44: =E45+E39 -> 708.9606787 | N44: -0.03783069174
A45: Stack flow | B45: kg/s | C45: =IF($C$15="OXY",1/3.19,1)*C44-C39 -> 555.874819 | D45: =4773632/3600/$H$9 -> 601.4675146 | E45: =4585242/3600/$H$9 -> 577.7307738 | G45: [2] p. 124+146 | I45: Fuel input - CO2 removed | N45: -0.03783069174
A46: Stack/flue gas cooling power (Qstack) | B46: MWth | C46: =(C35+C49+C50)-(C57+C51) -> 253.0937023 | D46: =(D35+D49+D50)-(D57+D51) -> 183.4084084 | E46: =(E35+E49+E50)-(E57+E51) -> 263.0448718 | N46: -0.03783069174
A47: Gas treatment flow | B47: kg/s | C47: =C44 -> 682.1402059 | D47: =D44 -> 601.4675146 | E47: =E44 -> 708.9606787 | I47: Combustion flue gases | N47: -0.03783069174
A49: Air in (Qenth,air) | B49: MWth | C49: =E49/E35*C35 -> 19.21665924 | D49: =57.3/3.6 -> 15.91666667 | E49: =71.9/3.6 -> 19.97222222 | G49: [2] p. 126+148 | I49: Fuel input | N49: -0.03783069174
A50: Raw water in (Qenth,water) | B50: MWth | C50: =E50/E35*C35 -> 29.98761011 | D50: =72.7/3.6 -> 20.19444444 | E50: =112.2/3.6 -> 31.16666667 | G50: [2] p. 126+148 | I50: Fuel input | N50: -0.03783069174
A51: CO2 enthalpy (Qenth,CO2) | B51: MWth | C51: =E51/E40*C40 -> -26.40620213 | D51: 0 | E51: =-98.8/3.6 -> -27.44444444 | G51: [2] p. 126+148 | I51: CO2 removed | N51: -0.03783069174
A53: Other cooling tower duty (Qcool,fix) | B53: MWth | C53: =E53/E31*C31 -> 29.44444444 | D53: =106/3.6 -> 29.44444444 | E53: =106/3.6 -> 29.44444444 | G53: [2] p. 126+148 | I53: Plant size | N53: 0
A54: Heat losses to environment (Qenv) | B54: MWth | C54: =E54/E35*C35 -> 35.68044518 | D54: =104.7/3.6 -> 29.08333333 | E54: =133.5/3.6 -> 37.08333333 | G54: [2] p. 126+148 | I54: Fuel input | N54: -0.03783069174
A56: Boiler efficiency | B56: % | C56: =E56 -> 0.891 | D56: 0.891 | E56: =D56 -> 0.891 | G56: [2] p. 126+148 | I56: Constant | N56: 0
A57: Cycle input (Qcycle) | B57: MWth | C57: =C35*C56 -> 1450.803291 | D57: =D35*D56 -> 1204.054054 | E57: =E35*E56 -> 1507.846154 | N57: -0.03783069174
A59: Aux consumption BOP (Waux) | B59: MWe | C59: =E59/E57*C57-IF(CCSbench!I11="NO",0.0022*Calc!$C$35,0) -> 38.10190461 | D59: =107/3.6 -> 29.72222222 | E59: 39.6 | G59: [2] p. 120+142 | I59: Cycle input | N59: -0.03783069174
A60: Aux consumption CO2 removal (to CT) (WCO2,capt) | B60: MWe | C60: =C21*(C18-C17)*C39/1000 -> 14.3942541 | D60: 0 | E60: 16 | G60: [2] p. 142
A61: Aux consumption CO2 removal (dissip) (WCO2,capt) | B61: MWe | C61: =(C18-C17)*(1-C21)*C39/1000 -> 0.757592321 | D61: 0 | E61: 0
A62: Aux consumption CO2 compr (WCO2,comp) | B62: MWe | C62: =C17*C39/1000 -> 33.82123604 | D62: 0 | E62: 35.69 | G62: [2] p. 142 | I62: CO2 removed | N62: -0.0523609964
A63: Total aux | B63: MWe | C63: =SUM(C59:C62) -> 87.07498707 | D63: =SUM(D59:D62) -> 29.72222222 | E63: =SUM(E59:E62) -> 91.29 | G63: [2] p. 120+142 | N63: -0.04617168292
A64: Recovered fraction of BOP aux (ω) | B64: % | C64: =E64 -> 0.227 | D64: 0.25 | E64: 0.227
A66: Turbine gross power (WT,gross) | B66: MWe | C66: =C63+C31 -> 637.0749871 | D66: =2087/3.6 -> 579.7222222 | E66: =2309/3.6 -> 641.3888889 | G66: [2] p. 120+142 | N66: -0.006725875514
A67: Gross efficiency | B67: % | C67: =C66/(C57+C64*C59+QrecCCS) -> 0.4365164882 | D67: =D66/(D57+D64*D59) -> 0.4785221518 | E67: =E66/(E57+E64*E59) -> 0.4228467429 | K67: CO2 specific heat consumption | N67: 0.03232789537
A68: CO2 capture thermal (QCO2,capt) | B68: MWth | C68: =C19*C39/1000 -> 252.5307737 | D68: 0 | E68: 332 | K68: =C68*1000/CO2flow -> 2000 | L68: MJth/tonCO2
A69: CO2 capture heat recovery (QCO2,H) | B69: MWth | C69: =(C74*C68+C66-(D67*(C57+C64*C59)))/$K$28 -> -0.0001359167789 | K69: =QrecCCS*1000/CO2flow -> -0.001076437354 | L69: MJth/tonCO2
A70: Condenser duty (Qcond) | B70: MWth | C70: =C57-(C66-C64*C59)-C68+QrecCCS-C54-C53 -> 504.7216369 | D70: =D57-(D66-D64*D59) -> 631.7623874 | E70: =1867/3.6 -> 518.6111111 | G70: [2] p. 126+148 | N70: -0.02678206065
A71: Cooling tower blowdown | B71: MWth | C71: =C72*E71/E72 -> 13.11433067 | D71: =29.4/3.6 -> 8.166666667 | E71: =50.4/3.6 -> 14 | G71: [2] p. 126+148 | I71: Cooling tower duty | N71: -0.06326209483
A72: Cooling tower duty (Qcool) | B72: MWth | C72: =(C53+(C68-QrecCCS)+C70+C60+C62+C73)/(1-E71/E72) -> 1016.642049 | D72: =D53+D68+D70+D71+D60 -> 669.3734985 | E72: =E53+E68+E70+E71+E60+E73 -> 1085.300427 | N72: -0.06326209483
A73: Flue gas sensible heat rejected from CC system | B73: MWth | C73: =E73/E45*C45 -> 168.6152371 | E73: =E46-87.8 -> 175.2448718 | I73: Flue gases
A74: CO2 removal ΔW/Q | B74: - | C74: =C84 -> 0.2427637167 | E74: =(D67*(E57+E59)-E66)/E68 -> 0.2984890795 | N74: -0.1866914625
A76: Low pressure turbine losses
A78: Saturation pressure | B78: =CCSbench!D10 -> 5.1 | C78: bar | E78: Assumption: | F78: Steam cycle performance obtained from model fitted on “DOE-NETL, 2012. Cost and Performance Baseline for Fossil Energy Plants – Volume 1: Bituminous Coal and Natural Gas to Electricity, DOE/NETL-2010/1397, Revision 2, November 2010.”
A79: Saturation temperature | B79: =3885.7/(16.3872-LN(B78*100))-230.17 -> 152.552412 | C79: °C | F79: Condensate from the capture plant is returned as saturated liquid to the optimal injection point in the feed water pre-heating line.
A81: Parameters | B81: A | C81: 0.060126
A82: A*ln(p)+B | B82: B | C82: 0.144804
B84: ΔW/Q | C84: =C81*LN(B78)+C82 -> 0.2427637167
A86: Costing | B86: $2011 | C86: Actual | D86: USC | E86: USC+MEA | G86: Reference | I86: Proportional to | J86: Exp | K86: Cella | L86: Active
A87: CAPEX | G87: [2] p. 132+155
A88: Coal & sorbent handling | B88: k$ | C88: =D88*(OFFSET(INDIRECT(K88),0,2)/OFFSET(INDIRECT(K88),0,3))^J88*L88 -> 50960.47884 | D88: 45398 | E88: 52286 | G88: IT 1 | I88: Fuel input (HHV) (Qfuel) | J88: 0.62 | K88: =ADDRESS(MATCH(I88,A:A,0),1) -> $A$35 | L88: =TRUE -> TRUE | N88: =C88/E88-1 -> -0.02535135909
A89: Coal and sorbent prep and feed | B89: k$ | C89: 24350.02898 | D89: 21531 | E89: 24983 | G89: IT 2 | I89: Fuel input (HHV) (Qfuel) | J89: 0.66 | K89: $A$35 | L89: =TRUE -> TRUE | N89: =C89/E89-1 -> -0.0253360693
A90: Feedwater and misc BOP systems (3.1+3.3+3.5) | B90: k$ | C90: 78198.44349 | D90: 68888 | E90: 80373 | G90: IT 3a | I90: Fuel input (HHV) (Qfuel) | J90: 0.68 | K90: $A$35 | L90: =TRUE -> TRUE | N90: -0.02705580872
A91: Feedwater and misc BOP systems (3.2+3.4+3.7) | B91: k$ | C91: 24267.72906 | D91: 18328 | E91: 24953 | G91: IT 3b | I91: Raw water in (Qenth,water) | J91: 0.71 | K91: $A$50 | L91: =TRUE -> TRUE | N91: -0.02746246719
A92: Feedwater and misc BOP systems (others) | B92: k$ | C92: 6734.672868 | D92: 6428 | E92: 6824 | G92: IT 3c | I92: Fuel input (HHV) (Qfuel) | J92: 0.25 | K92: $A$35 | L92: =TRUE -> TRUE | N92: -0.01309014245
A93: PC boiler | B93: k$ | C93: 388630.6933 | D93: 341722 | E93: 400793 | G93: IT 4 | I93: Fuel to main boiler | J93: 0.69 | K93: $A$36 | L93: =CCSbench!$I$9="YES" -> TRUE | N93: -0.03034560646
A94: Secondary combustor | B94: k$ | C94: =D94*((OFFSET(INDIRECT(K94),0,2)-OFFSET(INDIRECT(K93),0,2))/OFFSET(INDIRECT(K94),0,3))^J94*L94 -> 0 | D94: 341722 | E94: 400793 | G94: IT 4 | I94: Fuel input (HHV) (Qfuel) | J94: 0.69 | K94: $A$35 | L94: =CCSbench!$I$10="YES" -> TRUE
A95: Flue gas cleanup (other) | B95: k$ | C95: =D95*(OFFSET(INDIRECT(K95),0,2)/OFFSET(INDIRECT(K95),0,3))^J95*L95 -> 62385.02786 | D95: 59322 | E95: 70064 | G95: IT 5Aa | I95: Gas treatment flow | J95: 0.4 | K95: $A$47 | L95: =CCSbench!$I$12="YES" -> TRUE | N95: -0.1095993969
A96: Flue gas cleanup (FGD) | B96: k$ | C96: =D96*(OFFSET(INDIRECT(K96),0,2)/OFFSET(INDIRECT(K96),0,3))^J96*L96 -> 113523.8825 | D96: 107950 | E96: 127411 | G96: IT 5Ab | I96: Gas treatment flow | J96: 0.4 | K96: $A$47 | L96: =CCSbench!$I$11="YES" -> TRUE | N96: -0.1089946513
A97: CO2 removal | B97: k$ | C97: 189398.0803 | D97: 0 | E97: 533757 | G97: IT 5B
A98: CO2 compression | B98: k$ | C98: =E98*(OFFSET(INDIRECT(K98),0,2)/OFFSET(INDIRECT(K98),0,4))^J98*L98 -> 95205.80256 | D98: 0 | E98: 98381 | G98: IT 5B | I98: Aux consumption CO2 compr (WCO2,comp) | J98: 0.61 | K98: =ADDRESS(MATCH(I98,A:A,0),1) -> $A$62 | L98: =TRUE -> TRUE | N98: -0.0322744985
A99: Ducting (7.3+7.9) | B99: k$ | C99: =D99*(OFFSET(INDIRECT(K99),0,2)/OFFSET(INDIRECT(K99),0,3))^J99*L99 -> 26011.08723 | D99: 25341 | E99: 25928 | G99: IT 7a | I99: Fuel input (HHV) (Qfuel) | J99: 0.14 | K99: $A$35 | L99: =TRUE -> TRUE | N99: 0.003204536919
A100: Stack (7.4) | B100: k$ | C100: 19533.71942 | D100: 20287 | E100: 19099 | G100: IT 7b | I100: Stack flow | J100: 0.48 | K100: $A$45 | L100: =TRUE -> TRUE | N100: 0.02276137074
A101: Steam turbine generator | B101: k$ | C101: 164671.0741 | D101: 154148 | E101: 166838 | G101: IT 8a | I101: Turbine gross power (WT,gross) | J101: 0.7 | K101: $A$66 | L101: =TRUE -> TRUE | N101: -0.01298820332
A102: Steam turbine generator (8.3 condenser) | B102: k$ | C102: 11000.39969 | D102: 12786 | E102: 11338 | G102: IT 8b | I102: Condenser duty (Qcond) | J102: 0.67 | K102: $A$70 | L102: =TRUE -> TRUE | N102: -0.02977600211
A103: Cooling water system | B103: k$ | C103: 59406.74461 | D103: 44037 | E103: 62254 | G103: IT 9 | I103: Cooling tower duty (Qcool) | J103: =LN(E103/D103)/LN(OFFSET(INDIRECT(K103),0,4)/OFFSET(INDIRECT(K103),0,3)) -> 0.7163545371 | K103: $A$72 | L103: =TRUE -> TRUE | N103: -0.04573610347
A104: Ash/spent sorbent handling system | B104: k$ | C104: 18624.26819 | D104: 16778 | E104: 19028 | G104: IT 10 | I104: Fuel input (HHV) (Qfuel) | J104: 0.56 | K104: $A$35 | L104: =TRUE -> TRUE | N104: -0.02121777455
A105: Accessory electric plant | B105: k$ | C105: =D105*(OFFSET(INDIRECT(K105),0,2)/OFFSET(INDIRECT(K105),0,3))^J105 -> 98007.8074 | D105: 61735 | E105: 93584 | G105: IT 11 | I105: Total aux | J105: 0.43 | K105: $A$63 | N105: 0.04727098011
A106: Instrumentation and control | B106: k$ | C106: =D106*(OFFSET(INDIRECT(K106),0,2)/OFFSET(INDIRECT(K106),0,3))^J106 -> 30262.54555 | D106: 26316 | E106: 31654 | G106: IT 12 | I106: Total aux | J106: 0.13 | K106: $A$63 | N106: -0.04395825011
A107: BEC | B107: k$ | C107: =SUM(C88:C106) -> 1461172.486 | D107: =SUM(D88:D106)-D94 -> 1030995 | E107: =SUM(E88:E106)-E94 -> 1849548 | N107: -0.2099840145
A108: Improvements to site | B108: k$ | C108: =D108*(OFFSET(INDIRECT(K108),0,2)/OFFSET(INDIRECT(K108),0,3))^J108 -> 17578.18036 | D108: 16394 | E108: 18063 | G108: IT 13 | I108: BEC | J108: 0.2 | K108: =ADDRESS(MATCH(I108,A:A,0),1) -> $A$107 | N108: -0.02684048303
A109: Buildings and structures | B109: k$ | C109: =D109*(OFFSET(INDIRECT(K109),0,2)/OFFSET(INDIRECT(K109),0,3))^J109 -> 69347.57461 | D109: 66971 | E109: 71531 | G109: IT 14 | I109: BEC | J109: 0.1 | K109: =ADDRESS(MATCH(I109,A:A,0),1) -> $A$107 | N109: -0.03052418381
A110: Total capital cost | B110: k$ | C110: =SUM(C107:C109) -> 1548098.241 | D110: =SUM(D107:D109) -> 1114360 | E110: =SUM(E107:E109) -> 1939142 | N110: -0.2016581349
A111: Total Overnight Cost (TOC) | B111: k$ | C111: =E111/E110*C110 -> 1903528.023 | D111: 1378634 | E111: 2384352 | G111: [2] p. 135+158 | I111: Total capital cost | J111: 1 | K111: =ADDRESS(MATCH(I111,A:A,0),1) -> $A$110 | N111: -0.2016581349
A112: Total As Spent Cost (TASC) | B112: k$ | C112: =E112/E110*C110 -> 2170021.722 | D112: 1563371 | E112: 2718161 | G112: [2] p. 135+158 | I112: Total Overnight Cost (TOC) | J112: 1 | K112: =ADDRESS(MATCH(I112,A:A,0),1) -> $A$111 | N112: -0.2016581349
A113: FIXED OPEX | G113: [2] p. 136+159
A114: Labour | B114: k$/y | C114: =D114*(OFFSET(INDIRECT(K114),0,2)/OFFSET(INDIRECT(K114),0,3))^J114 -> 20994.9204 | D114: =6329.5+7284.5+3403 -> 17017 | E114: =7384+12065+4862 -> 24311 | I114: Total Overnight Cost (TOC) | J114: =LN(E114/D114)/LN(OFFSET(INDIRECT(K114),0,4)/OFFSET(INDIRECT(K114),0,3)) -> 0.6511387119 | K114: =ADDRESS(MATCH(I114,A:A,0),1) -> $A$111 | N114: -0.136402435
A115: Property taxes and insurance | B115: k$/y | C115: =D115*(OFFSET(INDIRECT(K115),0,2)/OFFSET(INDIRECT(K115),0,3))^J115 -> 30883.51417 | D115: 22287 | E115: 38782 | I115: Total Overnight Cost (TOC) | J115: =LN(E115/D115)/LN(OFFSET(INDIRECT(K115),0,4)/OFFSET(INDIRECT(K115),0,3)) -> 1.01116841 | K115: =ADDRESS(MATCH(I115,A:A,0),1) -> $A$111 | N115: -0.2036637056
A116: Total fixed Opex | B116: k$/y | C116: =SUM(C114:C115) -> 51878.43457 | D116: =SUM(D114:D115) -> 39304 | E116: =SUM(E114:E115) -> 63093 | N116: -0.1777465872
A117: VARIABLE OPEX | G117: [2] p. 136+159
A118: Maintenance material cost | B118: $/MWhe | C118: =D118*$D$31/$C$31*(OFFSET(INDIRECT(K118),0,2)/OFFSET(INDIRECT(K118),0,3))^J118*L118 -> 3.686562076 | D118: 2.67 | E118: 4.41742 | I118: Total Overnight Cost (TOC) | J118: 1 | K118: =ADDRESS(MATCH(I118,A:A,0),1) -> $A$111 | L118: =TRUE -> TRUE | N118: -0.1654490459
A119: Water | B119: $/MWhe | C119: 0.6979234705 | D119: 0.47 | E119: 0.72 | I119: Raw water in (Qenth,water) | J119: 1 | K119: $A$50 | L119: =TRUE -> TRUE | N119: -0.03066184659
A120: MU & WT chemicals | B120: $/MWhe | C120: 0.5345796795 | D120: 0.36 | E120: 0.556 | I120: Raw water in (Qenth,water) | J120: 1 | K120: $A$50 | L120: =TRUE -> TRUE | N120: -0.0385257563
A121: Limestone+hydrated lime | B121: $/MWhe | C121: 2.617563804 | D121: 2.308 | E121: 2.897 | I121: Gas treatment flow | J121: 1 | K121: $A$47 | L121: =L96 -> TRUE | N121: -0.09645709231
A122: Activated carbon | B122: $/MWhe | C122: 0.2948728722 | D122: 0.26 | E122: 0.329 | I122: Gas treatment flow | J122: 1 | K122: $A$47 | L122: =TRUE -> TRUE | N122: -0.1037298719
A123: Ammonia | B123: $/MWhe | C123: 1.92914906 | D123: 1.701 | E123: 2.183 | I123: Gas treatment flow | J123: 1 | K123: $A$47 | L123: =TRUE -> TRUE | N123: -0.1162853597
A124: CO2 related variable opex | B124: $/MWhe | C124: 12.39696525 | D124: 0 | E124: 2.036 | L124: =TRUE -> TRUE
A125: SCR catalyst | B125: $/MWhe | C125: =D125*$D$31/$C$31*(OFFSET(INDIRECT(K125),0,2)/OFFSET(INDIRECT(K125),0,3))^J125*L125 -> 0.2566505215 | D125: 0.213 | E125: 0.267 | I125: Fuel input (HHV) (Qfuel) | J125: 1 | K125: =ADDRESS(MATCH(I125,A:A,0),1) -> $A$35 | L125: =TRUE -> TRUE | N125: -0.03876209159
A126: Waste disposal | B126: $/MWhe | C126: =D126*$D$31/$C$31*(OFFSET(INDIRECT(K126),0,2)/OFFSET(INDIRECT(K126),0,3))^J126*L126 -> 1.289277268 | D126: 1.07 | E126: 1.34 | I126: Fuel input (HHV) (Qfuel) | J126: 1 | K126: =ADDRESS(MATCH(I126,A:A,0),1) -> $A$35 | L126: =TRUE -> TRUE | N126: -0.03785278518
A127: Total variable Opex | B127: $/MWhe | C127: =SUM(C118:C126) -> 23.703544 | D127: =SUM(D118:D126) -> 9.052 | E127: =SUM(E118:E126) -> 14.74542 | N127: 0.6075190807
A128: Fuel | B128: $/MWhe | C128: =$C$10/$C$32*3.6 -> 16.5667504 | D128: =$C$10/$D$32*3.6 -> 13.74911617 | E128: =$C$10/$E$32*3.6 -> 17.21812394 | N128: -0.03783069174
A130: CO2 transport and storage | B130: $/MWh | C130: =E130*$D$31/$C$31*(OFFSET(INDIRECT(K130),0,2)/OFFSET(INDIRECT(K130),0,4))^J130 -> 9.236825359 | D130: 0 | E130: 9.6 | G130: [2] p. 136+159 | I130: CO2 to storage (GCO2,capt) | J130: 1 | K130: =ADDRESS(MATCH(I130,A:A,0),1) -> $A$39 | N130: -0.03783069174
A132: Capacity factor | B132: % | C132: =CCSbench!D19 -> 0.85 | D132: =C132 -> 0.85 | E132: =D132 -> 0.85 | G132: [2] p. 136+159 | N132: 0
A133: Operating hours | B133: h/y | C133: =8760*C132 -> 7446 | D133: =8760*D132 -> 7446 | E133: =8760*E132 -> 7446 | N133: 0
A134: Yearly electricity production | B134: GWh | C134: =$C$31*C133/1000 -> 4095.3 | D134: =$D$31*D133/1000 -> 4095.3 | E134: =$E$31*E133/1000 -> 4095.3 | N134: 0
A135: CCF | B135: %/y | C135: =C22 -> 0.1088 | D135: 0.1023 | E135: 0.1088 | N135: 0
A136: COE Capex | B136: $/MWh | C136: =C112*C135/C134 -> 57.65105447 | D136: =D112*D135/D134 -> 39.05278082 | E136: =E112*E135/E134 -> 72.21349274 | N136: -0.2016581349
A137: COE Fixed Opex | B137: $/MWh | C137: =C116/C134 -> 12.66779835 | D137: =D116/D134 -> 9.597343296 | E137: =E116/E134 -> 15.40619735 | N137: -0.1777465872
A138: COE Variable Opex | B138: $/MWh | C138: =C127 -> 23.703544 | D138: 9.052 | E138: 14.74542 | N138: 0.6075190807
A139: COE Fuel | B139: $/MWh | C139: 16.5667504 | D139: 13.74911617 | E139: 17.21812394 | N139: -0.03783069174
A140: CO2 transport and storage | B140: $/MWh | C140: =C130 -> 9.236825359 | D140: =D130 -> 0 | E140: =E130 -> 9.6 | N140: -0.03783069174
A141: 1st y COE | B141: $/MWh | C141: =SUM(C136:C140) -> 119.8259726 | D141: =SUM(D136:D140) -> 71.45124029 | E141: =SUM(E136:E140) -> 129.183234 | N141: -0.07243402373
A143: CCA | B143: $/ton | C143: =(C141-$D$141)/($D$42-C42)*1000 -> 72.17059846 | D143: NA | E143: =(E141-$D$141)/($D$42-E42)*1000 -> 86.59722781 | N143: -0.1665945863
A145: Delta CCA | B145: $/ton | C145: =C143-E143 -> -14.42662934
A149: CCA breakdown
A151: COE Capex | B151: $/ton | C151: =(C136-D136)/($D$42-$C$42)*1000 -> 27.74689339
A152: COE Fixed Opex | B152: $/ton | C152: =(C137-D137)/($D$42-$C$42)*1000 -> 4.580833176
A153: COE Variable Opex | B153: $/ton | C153: =(C138-D138)/($D$42-$C$42)*1000 -> 21.85874007
A154: COE Fuel | B154: $/ton | C154: =(C139-D139)/($D$42-$C$42)*1000 -> 4.203648045
A155: CO2 transport and storage | B155: $/ton | C155: =(C140-D140)/($D$42-$C$42)*1000 -> 13.78048379
A156: CCA | B156: $/ton | C156: =SUM(C151:C155) -> 72.17059846

Sheet Sankey
B2: Sankey diagram: USC+CCS
C6: Fuel input (HHV) | D6: =Calc!C35 -> 1628.286522 | E6: MWHHV
C7: Air in | D7: =Calc!C49 -> 19.21665924 | E7: MWth
C8: Raw water in | D8: =Calc!C50 -> 29.98761011 | E8: MWth
C10: Ambient losses | D10: =-Calc!C54 -> -35.68044518 | E10: MWth
C11: Stack power | D11: =-Calc!C46+Calc!C73 -> -84.47846527 | E11: MWth
C12: Other cooling tower duty | D12: =-Calc!C53 -> -29.44444444 | E12: MWth
C13: Cycle input | D13: =SUM(D6:D12) -> 1527.887436 | E13: MWth
C15: Aux consumption BOP | D15: =Calc!C59 -> 38.10190461 | E15: MWe
C16: Aux consumption CO2 removal (to CT) | D16: =Calc!C60 -> 14.3942541 | E16: MWe
C17: Aux consumption CO2 removal (dissip) | D17: =Calc!C61 -> 0.757592321 | E17: MWe
C18: Aux consumption CO2 compr | D18: =Calc!C62 -> 33.82123604 | E18: MWe
C20: Turbine gross power | D20: =Calc!C66 -> 637.0749871 | E20: MWe
C22: CO2 capture thermal requirement | D22: =Calc!C68 -> 252.5307737 | E22: MWth
C23: CO2 capture heat recovery | D23: =QrecCCS -> -0.0001359167789 | E23: MWth
C24: Condenser duty | D24: =Calc!C70 -> 504.7216369 | E24: MWth
C25: CO2 entalphy | D25: =-Calc!C51 -> 26.40620213 | E25: MWth
C27: Other dissipations | D27: =Calc!C59*(1-Calc!C64) -> 29.45277226 | E27: MWth
C28: Cooling tower blowdown | D28: =Calc!C71 -> 13.11433067 | E28: MWth
C29: Cooling tower duty | D29: =Calc!C72 -> 1016.642049 | E29: MWth
C31: Net power output | D31: =D20-SUM(D15:D18) -> 550 | E31: MWe
C34: Balance check
C35: IN | D35: =D6+D7+D8 -> 1677.490791 | E35: MW
C36: OUT | D36: =-(D10+D11)+D29+D17+D31-D25-D28+D27 -> 1677.490791 | E36: MW

Sheet Maps
A1: CO2 Compression Map
B3: CO2 purity | C3: A | D3: B
A4: Params | B4: 1 | C4: 316.9662286 | D4: -70.84771734
B5: 0.95 | C5: 325.7985225 | D5: -72.40819795 | F5: [kJ/kg] | G5: [bar]
A7: Compression work | C7: W [kJ/kg] | H7: Oper Point
A8: Data | B8: p [bar] | C8: Pure CO2 | D8: 95% CO2 | E8: @ oper cond | G8: Pressure | H8: =CCSbench!$D$15 -> 2
B9: 1 | C9: =($C$4+$D$4*LN($B9)) -> 316.9662286 | D9: =($C$5+$D$5*LN($B9)) -> 325.7985225 | E9: =($C9-$D9)/($B$4-$B$5)*($H$9-$B$5)+$D9 -> 316.9662286 | G9: Purity | H9: =CCSbench!D16 -> 1
B10: =B9*1.5 -> 1.5 | C10: 288.2399512 | D10: 296.4395247 | E10: =($C10-$D10)/($B$4-$B$5)*($H$9-$B$5)+$D10 -> 288.2399512 | G10: Consumption | H10: =(($C$4+$D$4*LN($H8))-($C$5+$D$5*LN($H8)))/($B$4-$B$5)*($H$9-$B$5)+($C$5+$D$5*LN($H8)) -> 267.858333
B11: =B10*1.5 -> 2.25 | C11: 259.5136738 | D11: 267.0805268 | E11: 259.5136738
B12: 3.375 | C12: 230.7873965 | D12: 237.721529 | E12: 230.7873965 | G12: Assumption: | H12: Outlet pressure 150 bar
B13: 5.0625 | C13: 202.0611191 | D13: 208.3625312 | E13: 202.0611191 | H13: 6 compressor stages + 1 pump stage
B14: 7.59375 | C14: 173.3348417 | D14: 179.0035334 | E14: 173.3348417 | H14: Isentropic efficiency: 84% compressors, 80% pump
B15: 11.390625 | C15: 144.6085643 | D15: 149.6445356 | E15: 144.6085643 | H15: Intercooling to 30 °C
B16: 17.0859375 | C16: 115.882287 | D16: 120.2855378 | E16: 115.882287 | H16: Max T out compressors: 100°C
B17: 25.62890625 | C17: 87.15600961 | D17: 90.92653997 | E17: 87.15600961
B18: 38.44335938 | C18: 58.42973224 | D18: 61.56754216 | E18: 58.42973224
B19: 57.66503906 | C19: 29.70345487 | D19: 32.20854435 | E19: 29.70345487
A23: Lost work ratio Map
B25: p [bar] | C25: T [°C] | D25: W/Q | G25: A | H25: 0.060126
B26: 1 | C26: =3885.7/(16.3872-LN(B26*100))-230.17 -> 99.6288599 | D26: =$H$25*LN(B26)+$H$26 -> 0.144804 | G26: B | H26: 0.144804
B27: 2 | C27: =3885.7/(16.3872-LN(B27*100))-230.17 -> 120.2440253 | D27: =$H$25*LN(B27)+$H$26 -> 0.1864801674
B28: =B27*1.5 -> 3 | C28: 133.5432023 | D28: 0.2108591625 | G28: Mapped from a USC cycle with optimal reinjection point
B29: 5 | C29: 151.8073798 | D29: 0.2415730639 | G29: Steam cycle performance obtained from model fitted on “DOE-NETL, 2012. Cost and Performance Baseline for Fossil Energy Plants – Volume 1: Bituminous Coal and Natural Gas to Electricity, DOE/NETL-2010/1397, Revision 2, November 2010.”
B30: 7 | C30: 164.8739942 | D30: 0.2618037936
B31: 10 | C31: 179.7379761 | D31: 0.2832492313 | G31: Condensate from the capture plant is returned as saturated liquid to the optimal injection point in the feed water pre-heating line.
B32: 15 | C32: 198.0544578 | D32: 0.3076282264
B33: 20 | C33: 212.0754375 | D33: 0.3249253987
B34: 50 | C34: 263.5652781 | D34: 0.3800182952
A36: Efficiency loss map
A38: Δη [%] | B38: Equivalent electric consumption [MJe/tonCO2]
A39: CCR | B39: 100 | C39: 500 | D39: 1000 | E39: 1500 | F39: 2000 | G39: 2500
A40: 0.75 | B40: 0.008249756306 | C40: 0.03504891745 | D40: 0.06854793138 | E40: 0.1020467966 | F40: 0.1355458424 | G40: 0.1690448158 | I40: ="CCR = "&TEXT(A40,"0%") -> CCR = 75%
A41: 0.8 | B41: 0.008696408081 | C41: 0.03728218242 | D41: 0.07301442854 | E41: 0.1087466623 | F41: 0.1444789099 | G41: 0.1802111417 | I41: CCR = 80%
A42: 0.85 | B42: 0.009143059923 | C42: 0.03951549721 | D42: 0.07748095257 | E42: 0.1154464588 | F42: 0.153411962 | G42: 0.1913774552 | I42: CCR = 85%
A43: 0.9 | B43: 0.009589711829 | C43: 0.04174873057 | D43: 0.08194748466 | E43: 0.1221462506 | F43: 0.1623450218 | G43: 0.2025438 | I43: CCR = 90%
A44: 0.95 | B44: 0.0100363638 | C44: 0.04398198214 | D44: 0.08641396398 | E44: 0.1288459785 | F44: 0.1712780798 | G44: 0.2137101167 | I44: CCR = 95%
A45: 1 | B45: 0.01048301582 | C45: 0.04621524547 | D45: 0.09088054219 | E45: 0.1355458424 | F45: 0.1802111417 | G45: 0.2248764336 | I45: CCR = 100%
A47: CAPEX/OPEX maps
A49: CCR | B49: 0.9 | D49: =CONCATENATE("CCR = ",TEXT(B49,"0%")) -> CCR = 90% | F49: TYPE | G49: POST | I49: =IF(OR(Maps!B49 <> CCSbench!D18,Maps!G49 <> CCSbench!D8), "Data changed: Rebuild maps", "CAPEX/OPEX Maps: Ok") -> CAPEX/OPEX Maps: Ok
A51: CAPEX break-even | I51: OPEX break-even
B52: W/Weq | J52: W/Weq
A53: Delta eta | B53: 0 | C53: 0.2 | D53: 0.4 | E53: 0.6 | F53: 0.8 | G53: 1 | J53: 0 | K53: 0.2 | L53: 0.4 | M53: 0.6 | N53: 0.8 | O53: 1
A54: 0.03 | B54: 8457.536867 | C54: 8378.206492 | D54: 8305.991275 | E54: 8239.120235 | F54: 8176.448316 | G54: 8117.186634 | I54: 0.03 | J54: 60.73647208 | K54: 60.16254369 | L54: 59.64019858 | M54: 59.15659048 | N54: 58.70342075 | O54: 58.27497202
A55: 0.06 | B55: 6914.841215 | C55: 6766.854644 | D55: 6640.268857 | E55: 6527.182643 | F55: 6423.586153 | G55: 6327.133162 | I55: 0.06 | J55: 49.66041938 | K55: 48.59034063 | L55: 47.67578381 | M55: 46.85899754 | N55: 46.11094677 | O55: 45.41464207
A56: 0.09 | B56: 5386.03256 | C56: 5179.398248 | D56: 5010.361922 | E56: 4862.267034 | F56: 4728.019598 | G56: 4603.824809 | I56: 0.09 | J56: 38.68330282 | K56: 37.19153287 | L56: 35.9717734 | M56: 34.90354065 | N56: 33.93551788 | O56: 33.04025217
A57: 0.12 | B57: 3873.584105 | C57: 3616.366433 | D57: 3412.959707 | E57: 3236.955878 | F57: 3078.38467 | G57: 2932.12516 | I57: 0.12 | J57: 27.82421288 | K57: 25.96941546 | L57: 24.50350912 | M57: 23.23568007 | N57: 22.09388074 | O57: 21.0416965
